bitfinex-derivatives/quotes_SOLF0:USTF0_20241222
["timestamp","ask_amount","ask_price","bid_price","bid_amount"]
[1734892476318,2.7254,183.62,183.58,1.607]
[1734892476816,3.36,183.68,183.58,1.607]
[1734892477014,2.7251,183.64,183.58,4.3327]
[1734892477317,3.36,183.68,183.58,4.3327]
[1734892477519,3.36,183.68,183.58,1.607]
[1734892478011,2.725,183.64,183.59,2.7257]
[1734892478212,3.36,183.68,183.58,1.607]
[1734892478514,2.7256,183.6,183.58,1.607]
[1734892478716,3.36,183.68,183.58,1.607]
[1734892480215,33.30766788,183.67,183.54,3.3225]
[1734892480415,0.90026557,183.66,183.54,3.3225]
[1734892480612,33.30766788,183.61,183.5,0.22979]
[1734892480918,4.04054695,183.6,183.5,0.22979]
[1734892481116,3.14,183.6,183.5,0.22979]
[1734892481511,0.90062843,183.59,183.5,0.22979]
[1734892481917,3.14,183.6,183.5,0.22979]
[1734892482221,33.30766788,183.58,183.5,0.22979]
[1734892482421,2.7269,183.51,183.5,0.22979]
[1734892486722,3.62798469,183.51,183.5,0.22979]
[1734892487024,2.7269,183.51,183.5,0.22979]
[1734892487523,3.62801039,183.51,183.5,0.22979]
[1734892488022,3.62801039,183.51,183.34,8.2208]
[1734892488023,33.30766788,183.49,183.34,8.2208]
[1734892488324,3.14,183.48,183.34,8.2208]
[1734892489227,3.14,183.48,183.34,7.8101]
[1734892489726,2.7287,183.39,183.34,5.0808]
[1734892491230,2.7289,183.38,183.34,5.0808]
[1734892492421,2.729,183.37,183.34,5.0808]
[1734892492925,33.30766788,183.49,183.34,5.0808]
[1734892493121,33.30766788,183.52,183.36,33.30766788]
[1734892493330,3.14,183.51,183.36,33.30766788]
[1734892495123,33.30766788,183.49,183.35,3.14]
[1734892495529,33.30766788,183.49,183.34,5.0808]
[1734892495733,2.7285,183.41,183.36,2.729]
[1734892496425,2.7281,183.43,183.34,5.0808]
[1734892497030,2.728,183.44,183.34,5.0808]
[1734892497629,2.728,183.44,183.39,2.7286]
[1734892497823,3.14,183.5,183.38,3.14]
[1734892498126,3.14,183.5,183.42,2.7281]
[1734892498326,2.7275,183.47,183.43,4.9404]
[1734892498730,3.14,183.5,183.43,4.9404]
[1734892499629,3.14,183.5,183.43,7.6684]
[1734892499825,33.30766788,183.55,183.43,4.9404]
[1734892500023,3.14,183.58,183.5,2.7271]
[1734892500226,2.7266,183.54,183.44,36.44766788]
[1734892500529,3.14,183.59,183.47,2.7274]
[1734892500729,36.44766788,183.59,183.44,3.14]
[1734892501323,3.14,183.6,183.47,33.30766788]
[1734892501737,3.14,183.6,183.52,2.7267]
[1734892501928,3.14,183.6,183.53,1.7071]
[1734892502128,2.7259,183.58,183.53,1.7071]
[1734892502328,3.14,183.63,183.54,3.4805]
[1734892503021,2.7255,183.61,183.54,3.4805]
[1734892503230,3.14,183.63,183.54,3.4805]
[1734892503430,33.30766788,183.62,183.53,1.7071]
[1734892503628,2.7261,183.57,183.53,1.7071]
[1734892503831,3.14,183.58,183.53,1.7071]
[1734892504031,3.14,183.62,183.53,1.7071]
[1734892504232,2.7259,183.59,183.53,4.4336]
[1734892504429,3.14,183.62,183.53,1.7071]
[1734892504831,2.7257,183.6,183.53,1.7071]
[1734892505023,3.14,183.62,183.53,1.7071]
[1734892505229,2.98,183.61,183.53,1.7071]
[1734892505430,2.98,183.62,183.55,2.7263]
[1734892505628,2.98,183.62,183.53,1.7071]
[1734892505932,2.7257,183.6,183.53,1.7071]
[1734892506122,36.28766788,183.62,183.53,1.7071]
[1734892506933,33.30766788,183.59,183.34,5.4588]
[1734892507230,33.30766788,183.56,183.39,33.30766788]
[1734892507431,2.98,183.55,183.4,2.98]
[1734892507621,2.7267,183.53,183.42,33.30766788]
[1734892507823,2.98,183.55,183.43,1.6288]
[1734892508026,2.7266,183.53,183.43,1.6288]
[1734892508227,2.98,183.55,183.45,33.30766788]
[1734892508423,2.98,183.55,183.46,2.98]
[1734892509131,2.98,183.58,183.46,2.98]
[1734892509334,2.98,183.59,183.46,2.98]
[1734892509533,2.7259,183.58,183.52,2.7266]
[1734892509834,2.98,183.59,183.53,3.3245]
[1734892510426,4.0904651,183.64,183.53,3.3245]
[1734892510630,2.98,183.63,183.54,1.6605]
[1734892510824,2.98,183.64,183.54,1.6605]
[1734892512334,2.726,183.58,183.54,1.6605]
[1734892512532,2.98,183.64,183.54,1.6605]
[1734892512835,2.7258,183.59,183.54,4.3869]
[1734892513032,2.98,183.64,183.54,1.6605]
[1734892513528,2.98,183.64,183.53,3.3245]
[1734892513726,33.30766788,183.62,183.53,3.3245]
[1734892513924,12.31258071,183.61,183.53,3.3245]
[1734892514127,2.7265,183.54,183.53,3.3245]
[1734892514329,2.98,183.58,183.53,3.3245]
[1734892514727,2.98,183.62,183.53,3.3245]
[1734892515032,2.98,183.63,183.54,33.30766788]
[1734892515237,11.6220967,183.67,183.55,2.98]
[1734892515431,2.98,183.66,183.53,3.3245]
[1734892515637,33.30766788,183.65,183.53,3.3245]
[1734892515834,4.0904651,183.64,183.53,3.3245]
[1734892516031,4.0904651,183.67,183.54,33.30766788]
[1734892516235,15.29260263,183.7,183.62,2.7253]
[1734892516531,15.29260263,183.7,183.63,3.4599]
[1734892516739,7.0704651,183.7,183.63,3.4599]
[1734892517330,4.0904651,183.7,183.63,3.4599]
[1734892517534,2.7242,183.69,183.63,6.1849]
[1734892517742,2.7242,183.69,183.63,3.4599]
[1734892518439,2.7242,183.7,183.64,2.7249]
[1734892518642,2.98,183.74,183.64,2.7249]
[1734892518839,2.98,183.74,183.63,3.4599]
[1734892519545,0.89985213,183.73,183.63,3.4599]
[1734892519737,33.30766788,183.71,183.63,3.4599]
[1734892519938,4.99031723,183.7,183.63,3.4599]
[1734892520138,2.98,183.69,183.63,3.4599]
[1734892520344,2.725,183.64,183.63,3.4599]
[1734892520738,4.0904651,183.7,183.63,3.4599]
[1734892520937,2.98,183.69,183.63,3.4599]
[1734892521539,2.725,183.65,183.63,3.4599]
[1734892521844,2.98,183.69,183.63,3.4599]
[1734892522037,2.98,183.69,183.56,2.98]
[1734892522241,2.98,183.69,183.57,3.2505]
[1734892522445,0.90010278,183.68,183.57,3.2505]
[1734892523144,2.7249,183.65,183.59,2.7257]
[1734892523441,2.98,183.69,183.57,36.55816788]
[1734892524141,2.7251,183.64,183.58,2.7258]
[1734892524341,2.7251,183.64,183.58,5.7058]
[1734892524844,2.7254,183.62,183.58,2.98]
[1734892525042,33.30766788,183.68,183.58,2.98]
[1734892525238,0.90012328,183.67,183.57,3.2505]
[1734892526640,2.7255,183.61,183.57,3.2505]
[1734892526844,2.98,183.64,183.57,3.2505]
[1734892527747,2.7258,183.59,183.57,3.2505]
[1734892528243,2.98,183.64,183.57,3.2505]
[1734892529053,2.7257,183.6,183.57,3.2505]
[1734892529352,2.98,183.64,183.57,3.2505]
[1734892529551,2.7257,183.6,183.57,3.2505]
[1734892529946,2.98,183.64,183.57,3.2505]
[1734892530648,2.7253,183.62,183.57,3.2505]
[1734892530847,2.98,183.64,183.57,3.2505]
[1734892531352,2.7259,183.58,183.57,3.2505]
[1734892531854,2.98,183.64,183.55,1.7109]
[1734892532151,33.30766788,183.62,183.52,3.3066]
[1734892532351,0.90037747,183.61,183.52,3.3066]
[1734892532551,2.7266,183.53,183.52,3.3066]
[1734892532949,2.98,183.57,183.48,1.6536]
[1734892533154,2.7272,183.49,183.48,1.6536]
[1734892533557,2.98,183.57,183.48,1.6536]
[1734892533757,34.20840771,183.56,183.47,1.6533]
[1734892533952,0.90073983,183.55,183.47,1.6533]
[1734892534157,4.99284054,183.55,183.47,1.6533]
[1734892534452,2.7274,183.48,183.43,1.7214]
[1734892534651,2.98,183.51,183.43,1.7214]
[1734892534860,2.98,183.51,183.4,3.2991]
[1734892535058,2.7279,183.45,183.4,3.2991]
[1734892535357,2.98,183.51,183.4,3.2991]
[1734892535555,33.30766788,183.47,183.37,1.7214]
[1734892535858,2.94,183.46,183.37,1.7214]
[1734892536353,7.03413013,183.46,183.37,1.7214]
[1734892536558,0.90128277,183.45,183.32,3.3666]
[1734892536754,0.90128277,183.45,183.32,5.085]
[1734892537254,33.30766788,183.41,183.24,123.96202282]
[1734892537558,2.94,183.4,183.25,5.0582]
[1734892538355,2.94,183.4,183.28,2.7302]
[1734892538757,2.94,183.4,183.25,5.0582]
[1734892539663,33.30766788,183.41,183.25,5.0582]
[1734892539862,2.94,183.39,183.25,5.0582]
[1734892540061,2.7297,183.33,183.25,5.0582]
[1734892540764,2.94,183.46,183.3,33.30766788]
[1734892541061,2.7284,183.42,183.35,2.7293]
[1734892541254,2.94,183.46,183.36,5.0356]
[1734892541654,2.7278,183.46,183.39,2.7286]
[1734892541863,2.94,183.48,183.39,2.7286]
[1734892542371,2.728,183.44,183.38,2.94]
[1734892543168,2.94,183.48,183.38,2.94]
[1734892543768,2.7278,183.45,183.38,5.6688]
[1734892543976,2.94,183.48,183.38,2.94]
[1734892545073,2.7284,183.41,183.38,2.94]
[1734892545469,2.7284,183.41,183.36,5.0356]
[1734892546362,2.96,183.5,183.39,33.30766788]
[1734892546576,2.96,183.5,183.39,36.26766788]
[1734892546769,2.7278,183.45,183.4,2.7285]
[1734892547869,2.96,183.5,183.39,36.26766788]
[1734892547870,2.7281,183.43,183.39,2.96]
[1734892548075,2.96,183.5,183.36,5.0356]
[1734892548369,0.90107787,183.49,183.36,5.0356]
[1734892548576,34.20874575,183.49,183.36,5.0356]
[1734892548875,0.90107787,183.48,183.36,5.0356]
[1734892549266,0.90107787,183.48,183.36,3.4003]
[1734892549473,2.7279,183.45,183.36,3.4003]
[1734892549674,2.96,183.45,183.36,3.4003]
[1734892549873,2.96,183.45,183.37,2.96]
[1734892550276,2.96,183.49,183.37,2.96]
[1734892552580,2.96,183.49,183.36,3.4003]
[1734892552781,0.90116832,183.48,183.36,3.4003]
[1734892553178,2.7285,183.41,183.36,3.4003]
[1734892554280,2.7283,183.42,183.37,2.729]
[1734892554471,1.6978,183.53,183.38,2.96]
[1734892554680,2.7264,183.55,183.45,2.7278]
[1734892554878,0.90095046,183.54,183.46,3.3618]
[1734892555075,2.96,183.57,183.46,3.3618]
[1734892555276,2.727,183.51,183.46,3.3618]
[1734892555478,2.96,183.56,183.46,3.3618]
[1734892556483,0.90077414,183.55,183.46,3.3618]
[1734892557078,2.727,183.51,183.46,3.3618]
[1734892557278,2.96,183.56,183.46,3.3618]
[1734892558373,2.7271,183.5,183.46,3.3618]
[1734892558574,2.96,183.56,183.46,3.3618]
[1734892558778,2.96,183.57,183.46,3.3618]
[1734892559685,2.96,183.57,183.47,2.7275]
[1734892560079,2.7275,183.47,183.46,3.3618]
[1734892560674,2.94,183.52,183.41,2.94]
[1734892560881,2.7278,183.46,183.41,4.6012]
[1734892561077,33.30766788,183.6,183.41,4.6012]
[1734892561078,33.30766788,183.54,183.41,3.3951]
[1734892561283,33.30766788,183.51,183.41,3.3951]
[1734892561485,3.84098874,183.5,183.41,3.3951]
[1734892561681,2.94,183.5,183.41,3.3951]
[1734892562480,33.30766788,183.48,183.35,1.6585]
[1734892562686,0.90117287,183.47,183.35,1.6585]
[1734892563579,33.30766788,183.45,183.34,3.4007]
[1734892563782,3.86134801,183.44,183.34,3.4007]
[1734892563984,33.30766788,183.42,183.29,1.5863]
[1734892564879,0.9015119,183.41,183.29,1.5863]
[1734892565186,33.30766788,183.42,183.29,1.5863]
[1734892565390,35.15484273,183.52,183.3,33.30766788]
[1734892565391,2.94,183.41,183.3,33.30766788]
[1734892565687,2.94,183.44,183.35,2.7292]
[1734892566078,2.7283,183.42,183.36,2.7291]
[1734892566276,2.7283,183.42,183.37,3.3109]
[1734892567085,2.94,183.45,183.37,3.3109]
[1734892567487,33.30766788,183.48,183.37,3.3109]
[1734892567686,2.94,183.47,183.37,3.3109]
[1734892568086,0.90121017,183.46,183.37,3.3109]
[1734892568288,2.7292,183.36,183.3,2.94]
[1734892568486,2.7292,183.36,183.3,6.2509]
[1734892568685,2.7292,183.36,183.3,8.9808]
[1734892568985,2.7291,183.37,183.3,6.2509]
[1734892569185,33.30766788,183.48,183.35,2.7292]
[1734892569386,2.7281,183.44,183.35,36.26766788]
[1734892569785,2.96,183.48,183.35,36.26766788]
[1734892570391,2.7286,183.4,183.36,2.7291]
[1734892570586,2.96,183.43,183.35,2.96]
[1734892570791,2.96,183.43,183.31,2.96]
[1734892571391,2.96,183.43,183.32,33.30766788]
[1734892572491,2.7287,183.39,183.32,33.30766788]
[1734892572686,2.96,183.43,183.32,33.30766788]
[1734892572888,2.96,183.43,183.3,3.3109]
[1734892573094,34.20912723,183.42,183.3,3.3109]
[1734892573292,4.99601505,183.41,183.3,3.3109]
[1734892573591,35.00416788,183.42,183.3,3.3109]
[1734892573791,0.90153843,183.41,183.3,3.3109]
[1734892574095,0.90161525,183.4,183.3,3.3109]
[1734892574388,33.30766788,183.39,183.3,3.3109]
[1734892574585,7.05563165,183.38,183.23,33.30766788]
[1734892574781,33.30766788,183.36,183.22,3.3737]
[1734892574988,4.0963359,183.35,183.22,3.3737]
[1734892575188,33.30766788,183.36,183.25,2.7308]
[1734892575488,4.09622039,183.35,183.25,2.7308]
[1734892575882,2.7305,183.27,183.22,6.1048]
[1734892576186,2.96,183.31,183.22,3.3737]
[1734892577390,2.7311,183.23,183.22,3.3737]
[1734892577692,2.96,183.26,183.2,4.71079235]
[1734892577894,2.96,183.26,183.2,0.26264]
[1734892578090,2.7309,183.25,183.2,0.26264]
[1734892578393,2.96,183.26,183.2,0.26264]
[1734892579093,2.7311,183.23,183.2,0.26264]
[1734892579595,2.96,183.26,183.2,0.26264]
[1734892580589,2.96,183.31,183.2,0.26264]
[1734892580795,2.7298,183.32,183.21,33.30766788]
[1734892580995,2.96,183.36,183.22,4.5654]
[1734892581789,2.96,183.36,183.24,33.30766788]
[1734892581991,5.6892,183.36,183.31,2.7298]
[1734892582195,2.96,183.4,183.28,2.96]
[1734892582996,2.96,183.4,183.31,33.30766788]
[1734892583295,7.05441804,183.47,183.34,33.30766788]
[1734892583502,2.96,183.47,183.35,6.2485]
[1734892585097,2.7284,183.41,183.36,2.7291]
[1734892585298,2.96,183.47,183.35,6.2485]
[1734892585698,2.7287,183.39,183.35,6.2485]
[1734892586595,2.7287,183.39,183.35,3.2885]
[1734892587601,2.96,183.41,183.32,1.6049]
[1734892587796,2.96,183.4,183.32,1.6049]
[1734892588702,2.7288,183.39,183.32,1.6049]
[1734892589297,2.96,183.4,183.32,1.6049]
[1734892589694,2.7291,183.37,183.33,2.7295]
[1734892589898,2.96,183.4,183.33,2.7295]
[1734892590395,2.7289,183.38,183.33,2.7295]
[1734892590602,2.96,183.4,183.33,2.7295]
[1734892590804,2.7291,183.37,183.32,4.3346]
[1734892591002,2.96,183.4,183.32,1.6049]
[1734892591398,2.729,183.37,183.32,4.3345]
[1734892591698,2.96,183.4,183.32,1.6049]
[1734892592002,2.96,183.4,183.33,2.7295]
[1734892592804,2.96,183.4,183.32,1.6049]
[1734892592998,2.96,183.4,183.26,3.51192]
[1734892593206,2.96,183.4,183.27,1.6887]
[1734892593499,2.7291,183.37,183.28,2.7302]
[1734892593694,2.96,183.4,183.28,2.7302]
[1734892593897,0.90157622,183.39,183.28,2.7302]
[1734892594204,0.90157622,183.39,183.29,2.7301]
[1734892595499,2.96,183.4,183.29,2.7301]
[1734892595795,0.9015694,183.39,183.29,2.7301]
[1734892596205,2.7294,183.35,183.29,2.7301]
[1734892596404,2.96,183.4,183.29,2.7301]
[1734892596604,0.90157415,183.39,183.29,2.7301]
[1734892597205,2.7294,183.34,183.29,2.7301]
[1734892598407,2.96,183.35,183.27,4.4191]
[1734892598704,2.96,183.39,183.27,1.6887]
[1734892598901,2.7291,183.36,183.31,2.7298]
[1734892599304,2.96,183.39,183.27,1.6887]
[1734892599605,2.7293,183.35,183.3,2.7299]
[1734892599805,2.96,183.39,183.27,1.6887]
[1734892600400,2.7294,183.35,183.3,2.73]
[1734892600801,2.96,183.39,183.3,2.73]
[1734892601003,2.7291,183.37,183.3,2.73]
[1734892601203,2.96,183.39,183.3,2.73]
[1734892601507,2.7294,183.35,183.3,2.73]
[1734892601908,2.96,183.34,183.27,1.6887]
[1734892602109,2.7302,183.29,183.27,1.6887]
[1734892602309,2.96,183.34,183.26,3.51192]
[1734892602604,2.96,183.34,183.26,0.19692]
[1734892603000,2.96,183.34,183.25,2.96]
[1734892603199,5.6895,183.34,183.3,2.73]
[1734892603510,4.09604131,183.4,183.26,1.5928]
[1734892603511,2.96,183.38,183.26,1.5928]
[1734892603812,2.96,183.37,183.3,2.73]
[1734892604505,2.7293,183.35,183.3,2.73]
[1734892605106,2.7295,183.34,183.3,2.73]
[1734892606105,2.96,183.37,183.26,1.5928]
[1734892606600,33.30766788,183.35,183.21,3.3366]
[1734892607006,33.30766788,183.35,183.21,6.0678]
[1734892607007,2.7308,183.25,183.21,6.0678]
[1734892610407,2.96,183.28,183.19,0.30648]
[1734892611602,7.05785786,183.28,183.19,0.30648]
[1734892611907,0.90218546,183.27,183.19,0.30648]
[1734892612302,8.67635786,183.28,183.19,0.30648]
[1734892612502,33.30766788,183.26,183.19,0.30648]
[1734892613412,2.7315,183.2,183.19,0.30648]
[1734892616812,2.96,183.22,183.14,2.7323]
[1734892617009,33.30766788,183.2,183.02,1.6186]
[1734892617208,33.30766788,183.2,183.05,2.96]
[1734892617609,2.7322,183.16,183.1,2.733]
[1734892617809,2.96,183.17,183.1,2.733]
[1734892618014,36.26766788,183.17,183.03,2.96]
[1734892618209,36.26766788,183.17,183.04,3.4235]
[1734892619404,2.7329,183.11,183.04,6.1573]
[1734892619912,2.733,183.1,183.04,6.1573]
[1734892620213,2.96,183.12,183.04,6.1573]
[1734892620413,2.96,183.12,183.04,3.4235]
[1734892620609,2.7335,183.07,183.04,3.4235]
[1734892622010,2.7337,183.06,183.04,3.4235]
[1734892622311,2.96,183.12,183.02,1.6186]
[1734892622517,2.96,183.11,182.99,3.3394]
[1734892622708,2.96,183.14,183.04,2.7339]
[1734892622907,2.96,183.14,183.0,33.30766788]
[1734892622908,2.96,183.13,183.0,2.96]
[1734892623111,33.30766788,183.11,183.0,2.96]
[1734892623307,33.30766788,183.11,183.0,5.6945]
[1734892623514,33.30766788,183.11,182.99,5.0596]
[1734892624121,2.7339,183.05,183.0,2.7344]
[1734892624715,2.7339,183.05,183.01,2.7343]
[1734892625915,2.96,183.08,182.99,7.7941]
[1734892626517,36.26766788,183.08,182.99,3.3394]
[1734892626718,36.26766788,183.08,182.96,0.19779]
[1734892627318,2.7345,183.01,182.96,0.19779]
[1734892627524,36.26766788,183.08,182.96,2.93289]
[1734892627920,33.30766788,183.05,182.96,0.19779]
[1734892628916,2.96,183.08,182.96,0.19779]
[1734892628917,36.26766788,183.08,182.96,0.19779]
[1734892629218,2.7341,183.03,182.98,2.7348]
[1734892629514,36.26766788,183.08,182.96,0.19779]
[1734892629719,36.26766788,183.08,182.99,2.7345]
[1734892629916,2.96,183.08,182.97,1.6007]
[1734892630313,2.7337,183.06,182.97,1.6007]
[1734892630512,2.7337,183.06,183.01,2.7343]
[1734892630719,2.96,183.09,183.0,2.96]
[1734892631017,2.96,183.11,183.04,2.7338]
[1734892631213,2.7335,183.07,183.01,3.3532]
[1734892631409,36.26766788,183.11,183.01,3.3532]
[1734892631809,0.90327799,183.1,182.97,1.6007]
[1734892632011,36.26766788,183.11,182.97,1.6007]
[1734892632216,36.26766788,183.11,182.99,2.7346]
[1734892632415,36.26766788,183.11,182.97,1.6007]
[1734892632820,36.26766788,183.11,182.99,2.7346]
[1734892633420,36.26766788,183.11,182.97,1.6007]
[1734892633618,33.30766788,183.08,182.97,1.6007]
[1734892634221,33.30766788,183.08,182.96,0.19779]
[1734892634416,2.734,183.04,182.96,0.19779]
[1734892634721,2.96,183.03,182.96,0.19779]
[1734892635418,2.7344,183.01,182.96,0.19779]
[1734892635626,2.7344,183.01,182.96,2.93289]
[1734892636829,2.7344,183.01,182.96,2.7351]
[1734892637324,2.7343,183.02,182.96,2.7351]
[1734892637532,2.96,183.04,182.96,2.7351]
[1734892637929,2.96,183.04,182.95,3.3532]
[1734892639028,2.7343,183.02,182.95,6.0884]
[1734892639227,2.96,183.04,182.95,3.3532]
[1734892639521,2.7343,183.02,182.98,2.7348]
[1734892639722,2.96,183.04,182.95,3.3532]
[1734892640330,2.7345,183.01,182.97,2.7349]
[1734892641226,2.96,183.04,182.97,2.7349]
[1734892641632,2.96,183.05,182.97,2.7349]
[1734892642132,2.96,183.05,182.95,3.3532]
[1734892642133,2.7346,183.0,182.95,3.3532]
[1734892643327,2.96,183.05,182.95,3.3532]
[1734892643728,2.7351,182.97,182.95,3.3532]
[1734892644630,2.96,183.05,182.95,1.7233]
[1734892644834,20.66596009,183.01,182.88,1.93537]
[1734892645038,2.96,183.0,182.88,1.93537]
[1734892645231,2.96,183.0,182.88,4.67157]
[1734892645431,2.96,183.0,182.88,1.93537]
[1734892646433,2.96,183.0,182.89,2.7361]
[1734892647034,2.735,182.97,182.89,2.7361]
[1734892647231,20.66596009,183.01,182.9,2.96]
[1734892647435,2.96,183.01,182.9,23.62596009]
[1734892647631,5.6944,183.01,182.9,23.62596009]
[1734892647831,1.7468,183.06,182.9,23.62596009]
[1734892648030,2.96,183.05,182.93,20.66596009]
[1734892648234,2.7342,183.02,182.94,3.4074]
[1734892648433,2.7342,183.02,182.98,2.7347]
[1734892649242,2.96,183.05,182.95,2.96]
[1734892649632,2.96,183.05,182.96,1.7154]
[1734892649832,2.7339,183.05,182.96,1.7154]
[1734892650541,2.7339,183.05,183.0,2.7344]
[1734892651040,36.52722906,183.08,182.98,2.7348]
[1734892651438,2.7342,183.03,182.96,1.7154]
[1734892651943,2.7342,183.03,182.98,2.7348]
[1734892652243,2.7342,183.03,182.96,1.7154]
[1734892652450,2.7339,183.05,183.0,2.7344]
[1734892652639,2.7339,183.05,182.96,1.7154]
[1734892652840,2.734,183.04,182.96,1.7154]
[1734892653146,2.734,183.04,183.0,2.7345]
[1734892654240,3.0,183.03,182.94,3.4074]
[1734892654645,3.0,183.03,182.94,1.6664]
[1734892654843,33.56722906,183.02,182.89,3.4837]
[1734892655039,33.56722906,182.99,182.9,2.736]
[1734892655243,3.0,182.98,182.9,2.736]
[1734892655637,2.7356,182.93,182.89,4.4851]
[1734892656147,2.7357,182.93,182.87,1.6047]
[1734892656356,7.10457936,182.98,182.87,1.6047]
[1734892656656,2.7355,182.94,182.89,2.736]
[1734892656838,7.10457936,182.98,182.87,1.6047]
[1734892657243,3.0,182.98,182.87,1.6047]
[1734892657648,2.7355,182.94,182.88,2.7362]
[1734892657851,3.0,182.98,182.88,2.7362]
[1734892658052,7.10440938,182.98,182.88,2.7362]
[1734892658446,4.10440938,182.98,182.88,2.7362]
[1734892658648,3.0,182.97,182.87,4.3411]
[1734892658847,3.0,182.97,182.86,0.28147]
[1734892658848,33.56722906,182.96,182.86,0.28147]
[1734892659153,4.10503778,182.95,182.86,0.28147]
[1734892659648,2.7359,182.91,182.86,3.01797]
[1734892660954,4.10503778,182.95,182.86,0.28147]
[1734892661152,3.0,182.98,182.86,0.28147]
[1734892661448,7.10434115,182.98,182.86,1.96237]
[1734892662649,2.7354,182.94,182.9,2.7359]
[1734892663652,15.39659045,182.98,182.86,1.96237]
[1734892664245,2.7359,182.92,182.88,2.7363]
[1734892664444,15.39659045,182.98,182.86,1.96237]
[1734892665353,2.7359,182.91,182.86,4.69887]
[1734892666355,2.736,182.9,182.86,4.69887]
[1734892666757,3.0,182.93,182.86,4.69887]
[1734892667257,3.0,182.93,182.86,0.28147]
[1734892667759,2.7364,182.88,182.86,0.28147]
[1734892671158,2.7361,182.9,182.86,3.01787]
[1734892671454,3.0,182.93,182.86,0.28147]
[1734892671755,3.0,182.94,182.86,0.28147]
[1734892672158,1.5802,182.99,182.86,0.28147]
[1734892672159,22.2639419,182.99,182.86,0.28147]
[1734892672359,3.0,182.98,182.86,1.95677]
[1734892672659,3.0,182.99,182.86,1.95677]
[1734892672860,12.39156766,183.02,182.88,20.6837419]
[1734892673063,10.5316316,183.03,182.91,20.6837419]
[1734892673354,2.7343,183.01,182.96,2.7349]
[1734892673953,23.6837419,183.06,182.92,3.0]
[1734892674260,3.0,183.05,182.92,3.0]
[1734892674959,0.90343705,183.04,182.92,3.0]
[1734892675155,20.6837419,183.03,182.89,3.2166]
[1734892675556,2.7352,182.96,182.91,2.7357]
[1734892675861,3.0,182.98,182.89,3.2166]
[1734892676957,2.735,182.96,182.92,2.7356]
[1734892677158,3.0,182.98,182.89,3.2166]
[1734892677356,1.7158,183.02,182.89,3.2166]
[1734892677957,2.7346,182.99,182.94,2.7352]
[1734892679163,2.7346,182.99,182.95,2.7351]
[1734892679663,4.7158,183.02,182.89,3.2166]
[1734892679863,2.7347,182.98,182.93,2.7354]
[1734892680162,4.7158,183.02,182.93,2.7354]
[1734892680353,4.7158,183.02,182.9,3.0]
[1734892680559,0.90361147,183.01,182.9,3.0]
[1734892680759,4.7158,183.02,182.9,3.0]
[1734892680960,3.0,183.02,182.9,3.0]
[1734892681661,3.0,183.02,182.96,2.7349]
[1734892681865,3.0,183.02,182.9,3.0]
[1734892682565,0.90361313,183.01,182.9,3.0]
[1734892682762,2.7353,182.95,182.9,5.7358]
[1734892683462,2.735,182.97,182.9,3.0]
[1734892683665,2.96,183.01,182.9,3.0]
[1734892684064,2.96,183.01,182.95,2.7351]
[1734892684065,2.7346,182.99,182.95,2.7351]
[1734892684764,2.7346,182.99,182.96,2.735]
[1734892686173,2.96,183.04,182.96,2.735]
[1734892686367,2.96,183.04,182.9,3.0]